[Event "Early-Titled-Tuesday-Blitz-October-10-2023"]
[Site "Chess.com"]
[Date "2023.10.10"]
[Round "9"]
[White "maracayo"]
[Black "Actuary44"]
[Result "0-1"]
[WhiteElo "2373"]
[BlackElo "2522"]
[TimeControl "180+1"]
[EndTime "9:43:46 PDT"]
[Termination "Actuary44 won by resignation"]

1. e4 {[%clk 0:03:00.9]} 1... b6 {[%clk 0:02:59.6]} 2. Nf3 {[%clk 0:03:00.3]}
2... Bb7 {[%clk 0:03:00.2]} 3. d3 {[%clk 0:03:00.6]} 3... e6 {[%clk 0:03:00.8]}
4. Nbd2 {[%clk 0:03:01.2]} 4... Nf6 {[%clk 0:03:01.3]} 5. Be2 {[%clk 0:03:01.2]}
5... d5 {[%clk 0:03:02]} 6. exd5 {[%clk 0:03:01.4]} 6... Nxd5 {[%clk 0:03:02.9]}
7. O-O {[%clk 0:03:01.5]} 7... Be7 {[%clk 0:03:01.8]} 8. Re1 {[%clk 0:03:00.1]}
8... O-O {[%clk 0:03:01.4]} 9. Bf1 {[%clk 0:03:00.4]} 9... c5 {[%clk 0:03:01.4]}
10. a3 {[%clk 0:03:00.5]} 10... Nc6 {[%clk 0:03:01.8]} 11. Nc4 {[%clk
0:03:00.6]} 11... Qc7 {[%clk 0:02:50.3]} 12. c3 {[%clk 0:02:58.2]} 12... Rad8
{[%clk 0:02:48.1]} 13. Qc2 {[%clk 0:02:57.8]} 13... h6 {[%clk 0:02:41.5]} 14. a4
{[%clk 0:02:57.4]} 14... Nf4 {[%clk 0:02:34.4]} 15. g3 {[%clk 0:02:50.3]} 15...
Nd5 {[%clk 0:02:19.7]} 16. Bd2 {[%clk 0:02:40.6]} 16... Nf6 {[%clk 0:02:15.7]}
17. Bf4 {[%clk 0:02:37.8]} 17... Qc8 {[%clk 0:02:08.9]} 18. Bg2 {[%clk
0:02:22.6]} 18... Nd5 {[%clk 0:02:06.3]} 19. Bd2 {[%clk 0:02:21.4]} 19... Bf6
{[%clk 0:02:05.6]} 20. a5 {[%clk 0:02:19.3]} 20... b5 {[%clk 0:02:03.9]} 21.
Nce5 {[%clk 0:02:18.8]} 21... a6 {[%clk 0:01:57.2]} 22. Ng4 {[%clk 0:01:50.9]}
22... Be7 {[%clk 0:01:56.9]} 23. h4 {[%clk 0:01:30.5]} 23... f6 {[%clk
0:01:48.2]} 24. d4 {[%clk 0:01:14.7]} 24... f5 {[%clk 0:01:38.6]} 25. Nge5
{[%clk 0:01:07.7]} 25... Nxe5 {[%clk 0:01:37.2]} 26. Nxe5 {[%clk 0:01:02.7]}
26... cxd4 {[%clk 0:01:33.3]} 27. Ng6 {[%clk 0:00:59.2]} 27... Rfe8 {[%clk
0:01:30.1]} 28. Qc1 {[%clk 0:00:38.1]} 28... dxc3 {[%clk 0:01:23.6]} 29. bxc3
{[%clk 0:00:39]} 29... Bf6 {[%clk 0:01:20.2]} 30. Ne5 {[%clk 0:00:19.4]} 30...
Qc7 {[%clk 0:01:13.1]} 31. f4 {[%clk 0:00:18.8]} 31... Bxe5 {[%clk 0:00:58.2]}
32. Rxe5 {[%clk 0:00:17.8]} 32... Nf6 {[%clk 0:00:57.1]} 33. Qe1 {[%clk
0:00:16.8]} 33... Bxg2 {[%clk 0:00:55.8]} 34. Kxg2 {[%clk 0:00:16.6]} 34... Qc6+
{[%clk 0:00:55.1]} 35. Kh3 {[%clk 0:00:16.9]} 35... Ne4 {[%clk 0:00:51]} 36. Be3
{[%clk 0:00:16]} 36... Rd3 {[%clk 0:00:47.1]} 37. Qe2 {[%clk 0:00:10.6]} 37...
Qxc3 {[%clk 0:00:44.9]} 38. Re1 {[%clk 0:00:09.4]} 38... Qxa5 {[%clk 0:00:34.1]}
39. Qxd3 {[%clk 0:00:04.3]} 39... Qxe1 {[%clk 0:00:33.6]} 40. Kg2 {[%clk
0:00:01.4]} 0-1

[Event "Early-Titled-Tuesday-Blitz-October-10-2023"]
[Site "Chess.com"]
[Date "2023.10.10"]
[Round "9"]
[White "Radislav_Atanasov"]
[Black "Darko-Dimitrijevic"]
[Result "1-0"]
[WhiteElo "2290"]
[BlackElo "2117"]
[TimeControl "180+1"]
[EndTime "9:43:47 PDT"]
[Termination "Radislav_Atanasov won by resignation"]

1. e4 {[%clk 0:02:55.5]} 1... c5 {[%clk 0:02:58.9]} 2. c3 {[%clk 0:02:53.9]}
2... d6 {[%clk 0:02:56.6]} 3. d4 {[%clk 0:02:52.9]} 3... Nd7 {[%clk 0:02:56.5]}
4. Nf3 {[%clk 0:02:50.4]} 4... Qc7 {[%clk 0:02:52.7]} 5. Bd3 {[%clk 0:02:36.3]}
5... g6 {[%clk 0:02:52.2]} 6. O-O {[%clk 0:02:35.5]} 6... Bg7 {[%clk 0:02:52.2]}
7. Re1 {[%clk 0:02:35.4]} 7... e6 {[%clk 0:02:52.3]} 8. Nbd2 {[%clk 0:02:34.8]}
8... Ne7 {[%clk 0:02:52.1]} 9. Nf1 {[%clk 0:02:33.8]} 9... O-O {[%clk 0:02:52]}
10. Bg5 {[%clk 0:02:30.7]} 10... Nc6 {[%clk 0:02:46.5]} 11. Rc1 {[%clk
0:02:19.8]} 11... a6 {[%clk 0:02:45.2]} 12. Bb1 {[%clk 0:02:18.1]} 12... b5
{[%clk 0:02:42.6]} 13. Qd2 {[%clk 0:02:06.4]} 13... Re8 {[%clk 0:02:41.7]} 14.
Bh6 {[%clk 0:02:02.2]} 14... Bh8 {[%clk 0:02:38.6]} 15. h4 {[%clk 0:02:02.2]}
15... Bb7 {[%clk 0:02:34.6]} 16. h5 {[%clk 0:02:00.8]} 16... Nf6 {[%clk
0:02:32.2]} 17. hxg6 {[%clk 0:01:57.8]} 17... hxg6 {[%clk 0:02:32.1]} 18. Qf4
{[%clk 0:01:55.7]} 18... e5 {[%clk 0:02:00.2]} 19. dxe5 {[%clk 0:01:37.1]} 19...
Nxe5 {[%clk 0:01:56.1]} 20. Rcd1 {[%clk 0:01:01.8]} 20... Bg7 {[%clk 0:01:34.4]}
21. Bxg7 {[%clk 0:01:00.2]} 21... Kxg7 {[%clk 0:01:33.8]} 22. Ne3 {[%clk
0:00:56]} 22... Rh8 {[%clk 0:01:31.4]} 23. Qg3 {[%clk 0:00:53]} 23... Kf8 {[%clk
0:01:18.3]} 24. Nxe5 {[%clk 0:00:41.3]} 24... dxe5 {[%clk 0:01:17]} 25. Nd5
{[%clk 0:00:38.9]} 25... Bxd5 {[%clk 0:01:14.2]} 26. exd5 {[%clk 0:00:35.2]}
26... Qd6 {[%clk 0:00:58.4]} 27. Qxe5 {[%clk 0:00:27.9]} 27... Qxe5 {[%clk
0:00:55.4]} 28. Rxe5 {[%clk 0:00:27.6]} 28... Kg7 {[%clk 0:00:55.3]} 29. d6
{[%clk 0:00:27]} 29... Rhd8 {[%clk 0:00:53.8]} 30. Rxc5 {[%clk 0:00:26.4]} 30...
Rd7 {[%clk 0:00:50.5]} 31. Rc7 {[%clk 0:00:21.7]} 31... Rxc7 {[%clk 0:00:48.1]}
32. dxc7 {[%clk 0:00:20.9]} 32... Rc8 {[%clk 0:00:48]} 33. Rd6 {[%clk
0:00:20.6]} 33... a5 {[%clk 0:00:47.9]} 34. Rc6 {[%clk 0:00:19.9]} 34... Kf8
{[%clk 0:00:43.3]} 35. Rxf6 {[%clk 0:00:19.3]} 35... Ke7 {[%clk 0:00:42.6]} 36.
Rc6 {[%clk 0:00:18.3]} 36... Kd7 {[%clk 0:00:42.2]} 37. Be4 {[%clk 0:00:17.2]}
37... b4 {[%clk 0:00:41.7]} 38. cxb4 {[%clk 0:00:16.5]} 38... axb4 {[%clk
0:00:41.9]} 39. a4 {[%clk 0:00:16.8]} 39... f5 {[%clk 0:00:40.1]} 40. Bd5 {[%clk
0:00:15.5]} 40... g5 {[%clk 0:00:39.8]} 41. Kf1 {[%clk 0:00:14.8]} 41... Rxc7
{[%clk 0:00:40.1]} 42. Rxc7+ {[%clk 0:00:14.1]} 42... Kxc7 {[%clk 0:00:40.4]}
43. Be6 {[%clk 0:00:14.6]} 43... f4 {[%clk 0:00:39]} 44. b3 {[%clk 0:00:14.8]}
44... Kb6 {[%clk 0:00:39.4]} 45. Bc4 {[%clk 0:00:15]} 45... Kc5 {[%clk
0:00:39.5]} 46. Ke2 {[%clk 0:00:15.2]} 46... Kd4 {[%clk 0:00:39.5]} 47. a5
{[%clk 0:00:15.5]} 47... Kc5 {[%clk 0:00:39.8]} 48. a6 {[%clk 0:00:14.6]} 48...
Kc6 {[%clk 0:00:39.7]} 49. Kd3 {[%clk 0:00:15]} 49... Kb6 {[%clk 0:00:39.8]} 50.
Kd4 {[%clk 0:00:15.3]} 1-0

[Event "Early-Titled-Tuesday-Blitz-October-10-2023"]
[Site "Chess.com"]
[Date "2023.10.10"]
[Round "9"]
[White "HrvojeZagreb"]
[Black "GradualismUnleashed"]
[Result "1-0"]
[WhiteElo "2354"]
[BlackElo "2559"]
[TimeControl "180+1"]
[EndTime "9:43:55 PDT"]
[Termination "HrvojeZagreb won by checkmate"]

1. d4 {[%clk 0:02:45.7]} 1... Nf6 {[%clk 0:02:59.7]} 2. Bf4 {[%clk 0:02:43.4]}
2... d5 {[%clk 0:02:59.7]} 3. e3 {[%clk 0:02:43.3]} 3... c5 {[%clk 0:03:00.1]}
4. Nc3 {[%clk 0:02:42.9]} 4... a6 {[%clk 0:02:58.5]} 5. dxc5 {[%clk 0:02:43.1]}
5... e6 {[%clk 0:02:56.9]} 6. Na4 {[%clk 0:02:40.6]} 6... Nfd7 {[%clk 0:02:57]}
7. c3 {[%clk 0:02:36]} 7... Nxc5 {[%clk 0:02:56]} 8. Nf3 {[%clk 0:02:33.5]} 8...
Bd7 {[%clk 0:02:52.6]} 9. Nxc5 {[%clk 0:02:32.2]} 9... Bxc5 {[%clk 0:02:53.5]}
10. Bd3 {[%clk 0:02:30.4]} 10... O-O {[%clk 0:02:53]} 11. Bxh7+ {[%clk
0:02:26.8]} 11... Kxh7 {[%clk 0:02:51]} 12. Ng5+ {[%clk 0:02:27]} 12... Kg8
{[%clk 0:02:43.6]} 13. Qh5 {[%clk 0:02:25.2]} 13... Qxg5 {[%clk 0:02:26.6]} 14.
Qxg5 {[%clk 0:02:21.1]} 14... Bb5 {[%clk 0:02:23.1]} 15. h4 {[%clk 0:02:08.8]}
15... Nc6 {[%clk 0:02:18.7]} 16. h5 {[%clk 0:02:06.3]} 16... f6 {[%clk
0:02:16.3]} 17. Qg4 {[%clk 0:01:57.9]} 17... f5 {[%clk 0:02:12.8]} 18. Qg3
{[%clk 0:01:49.3]} 18... Rae8 {[%clk 0:02:06.3]} 19. Bd6 {[%clk 0:01:42.7]}
19... f4 {[%clk 0:01:56.5]} 20. Bxf4 {[%clk 0:01:41.3]} 20... e5 {[%clk
0:01:54.8]} 21. Bg5 {[%clk 0:01:34.5]} 21... e4 {[%clk 0:01:46.1]} 22. h6 {[%clk
0:01:31.2]} 22... Rf7 {[%clk 0:01:43.1]} 23. Bf4 {[%clk 0:01:25.7]} 23... Bd3
{[%clk 0:01:34.3]} 24. Bd6 {[%clk 0:01:16.2]} 24... Bb6 {[%clk 0:01:28.7]} 25.
O-O-O {[%clk 0:01:14.5]} 25... Re6 {[%clk 0:01:07.1]} 26. Rh5 {[%clk 0:01:10.4]}
26... g6 {[%clk 0:01:03.8]} 27. Rxd5 {[%clk 0:01:09.4]} 27... Bc4 {[%clk
0:01:01.9]} 28. R5d2 {[%clk 0:01:04.7]} 28... Bxa2 {[%clk 0:00:59]} 29. b4
{[%clk 0:00:54.3]} 29... Bc4 {[%clk 0:00:55]} 30. Bc5 {[%clk 0:00:51.7]} 30...
Bc7 {[%clk 0:00:54]} 31. Qh3 {[%clk 0:00:48.2]} 31... Ne5 {[%clk 0:00:41]} 32.
Rd4 {[%clk 0:00:45.9]} 32... Re8 {[%clk 0:00:27]} 33. Rxe4 {[%clk 0:00:41.6]}
33... Nd3+ {[%clk 0:00:24.1]} 34. Rxd3 {[%clk 0:00:41]} 34... Rxe4 {[%clk
0:00:24.7]} 35. Rd7 {[%clk 0:00:40.9]} 35... Re8 {[%clk 0:00:22]} 36. Rxf7
{[%clk 0:00:39.8]} 36... Bxf7 {[%clk 0:00:22.9]} 37. Qd7 {[%clk 0:00:39.6]}
37... Be5 {[%clk 0:00:22]} 38. Bd4 {[%clk 0:00:37.9]} 38... Bxd4 {[%clk
0:00:21.4]} 39. cxd4 {[%clk 0:00:38]} 39... Rf8 {[%clk 0:00:16]} 40. g4 {[%clk
0:00:32.3]} 40... Kh7 {[%clk 0:00:15.9]} 41. g5 {[%clk 0:00:32]} 41... b5 {[%clk
0:00:16.3]} 42. d5 {[%clk 0:00:30.9]} 42... Kg8 {[%clk 0:00:14.4]} 43. e4 {[%clk
0:00:31.1]} 43... Re8 {[%clk 0:00:11.2]} 44. f3 {[%clk 0:00:28.3]} 44... Rf8
{[%clk 0:00:11.3]} 45. e5 {[%clk 0:00:27.8]} 45... Bxd5 {[%clk 0:00:09.1]} 46.
Qg7# {[%clk 0:00:26.2]} 1-0

[Event "Early-Titled-Tuesday-Blitz-October-10-2023"]
[Site "Chess.com"]
[Date "2023.10.10"]
[Round "9"]
[White "Kirill_Klukin"]
[Black "dosto07"]
[Result "1-0"]
[WhiteElo "2659"]
[BlackElo "2509"]
[TimeControl "180+1"]
[EndTime "9:43:55 PDT"]
[Termination "Kirill_Klukin won by resignation"]

1. d4 {[%clk 0:03:00.9]} 1... d5 {[%clk 0:02:59.8]} 2. c4 {[%clk 0:02:59.8]}
2... dxc4 {[%clk 0:03:00.7]} 3. Nf3 {[%clk 0:02:59]} 3... Nf6 {[%clk 0:03:00.9]}
4. e3 {[%clk 0:02:59.5]} 4... e6 {[%clk 0:03:01.3]} 5. Bxc4 {[%clk 0:03:00.1]}
5... a6 {[%clk 0:03:01.8]} 6. O-O {[%clk 0:03:00.4]} 6... c5 {[%clk 0:03:01.9]}
7. b3 {[%clk 0:03:00.8]} 7... Nc6 {[%clk 0:02:57.7]} 8. Bb2 {[%clk 0:03:01]}
8... cxd4 {[%clk 0:02:57.4]} 9. Nxd4 {[%clk 0:03:01.2]} 9... Bd7 {[%clk
0:02:57.9]} 10. Nd2 {[%clk 0:02:57]} 10... Nxd4 {[%clk 0:02:57.9]} 11. Bxd4
{[%clk 0:02:57]} 11... Be7 {[%clk 0:02:58.4]} 12. Be2 {[%clk 0:02:54.9]} 12...
Bc6 {[%clk 0:02:56.9]} 13. Bf3 {[%clk 0:02:54.8]} 13... Bxf3 {[%clk 0:02:55.7]}
14. Nxf3 {[%clk 0:02:39.2]} 14... O-O {[%clk 0:02:54.8]} 15. Qe2 {[%clk
0:02:37.1]} 15... Rc8 {[%clk 0:02:52.2]} 16. Rfd1 {[%clk 0:02:36.8]} 16... Qa5
{[%clk 0:02:52]} 17. Rac1 {[%clk 0:02:30]} 17... Ne4 {[%clk 0:02:45.8]} 18. h3
{[%clk 0:02:28.2]} 18... h6 {[%clk 0:02:44.9]} 19. Rc2 {[%clk 0:02:22.6]} 19...
Rxc2 {[%clk 0:02:28.9]} 20. Qxc2 {[%clk 0:02:22.6]} 20... Nd6 {[%clk 0:02:23.5]}
21. b4 {[%clk 0:02:09.9]} 21... Qb5 {[%clk 0:02:09.6]} 22. Bc5 {[%clk
0:01:45.5]} 22... Rc8 {[%clk 0:01:59.2]} 23. Qd3 {[%clk 0:01:32.4]} 23... Rd8
{[%clk 0:01:24.1]} 24. Qb3 {[%clk 0:01:04.7]} 24... b6 {[%clk 0:01:08.3]} 25. a4
{[%clk 0:00:51.7]} 25... Qe8 {[%clk 0:01:07.6]} 26. Bxb6 {[%clk 0:00:48.8]}
26... Rc8 {[%clk 0:01:04.1]} 27. Bc5 {[%clk 0:00:47.3]} 27... Ne4 {[%clk
0:01:01.9]} 28. Bxe7 {[%clk 0:00:44.9]} 28... Qxe7 {[%clk 0:01:02.3]} 29. b5
{[%clk 0:00:44.1]} 29... axb5 {[%clk 0:01:01.3]} 30. axb5 {[%clk 0:00:45]} 30...
Qc5 {[%clk 0:00:53.1]} 31. Nd4 {[%clk 0:00:42.6]} 31... Qb6 {[%clk 0:00:45.5]}
32. Qd3 {[%clk 0:00:41.7]} 32... Nc5 {[%clk 0:00:41.3]} 33. Qc2 {[%clk
0:00:39.7]} 33... Rd8 {[%clk 0:00:41.1]} 34. Rc1 {[%clk 0:00:39.6]} 34... Rd5
{[%clk 0:00:28.4]} 35. Qc4 {[%clk 0:00:31.7]} 35... Rg5 {[%clk 0:00:22.3]} 36.
Nf3 {[%clk 0:00:29.9]} 36... Rh5 {[%clk 0:00:19.6]} 37. g4 {[%clk 0:00:22.4]}
37... Rxh3 {[%clk 0:00:09.9]} 38. Qxc5 {[%clk 0:00:20.2]} 38... Qxc5 {[%clk
0:00:07.4]} 39. Rxc5 {[%clk 0:00:19.8]} 39... Rxf3 {[%clk 0:00:08.3]} 40. b6
{[%clk 0:00:20.2]} 40... e5 {[%clk 0:00:06.2]} 41. b7 {[%clk 0:00:20.3]} 41...
Rf6 {[%clk 0:00:06.3]} 42. b8=Q+ {[%clk 0:00:20.6]} 42... Kh7 {[%clk 0:00:07.2]}
43. Qxe5 {[%clk 0:00:21.3]} 43... Re6 {[%clk 0:00:07.2]} 44. Qf5+ {[%clk
0:00:21.9]} 1-0

[Event "Early-Titled-Tuesday-Blitz-October-10-2023"]
[Site "Chess.com"]
[Date "2023.10.10"]
[Round "9"]
[White "Casper"]
[Black "IngOscarArdila"]
[Result "1-0"]
[WhiteElo "2440"]
[BlackElo "2318"]
[TimeControl "180+1"]
[EndTime "9:43:55 PDT"]
[Termination "Casper won by resignation"]

1. e4 {[%clk 0:02:55.8]} 1... e5 {[%clk 0:02:59.4]} 2. d4 {[%clk 0:02:54.2]}
2... exd4 {[%clk 0:02:55.4]} 3. Qxd4 {[%clk 0:02:55.1]} 3... Nc6 {[%clk
0:02:55.9]} 4. Qe3 {[%clk 0:02:55.6]} 4... Nf6 {[%clk 0:02:50.2]} 5. Nc3 {[%clk
0:02:56.2]} 5... Bb4 {[%clk 0:02:49.3]} 6. Bd2 {[%clk 0:02:56.6]} 6... d6 {[%clk
0:02:46.8]} 7. O-O-O {[%clk 0:02:56.7]} 7... Qe7 {[%clk 0:02:47.2]} 8. f3 {[%clk
0:02:52.1]} 8... Bd7 {[%clk 0:02:47.1]} 9. Nge2 {[%clk 0:02:48.1]} 9... O-O-O
{[%clk 0:02:41.2]} 10. Nf4 {[%clk 0:02:45.6]} 10... Bc5 {[%clk 0:02:39.7]} 11.
Qd3 {[%clk 0:02:41.7]} 11... Ne5 {[%clk 0:02:37.8]} 12. Qe2 {[%clk 0:02:40]}
12... Bc6 {[%clk 0:02:30.8]} 13. Be3 {[%clk 0:02:38]} 13... Bb6 {[%clk
0:02:25.9]} 14. Bxb6 {[%clk 0:02:36.1]} 14... axb6 {[%clk 0:02:26.8]} 15. Nb5
{[%clk 0:02:32.1]} 15... Kb8 {[%clk 0:02:24.6]} 16. Nd4 {[%clk 0:02:32.2]} 16...
Bd7 {[%clk 0:02:21.8]} 17. Qe3 {[%clk 0:02:28.3]} 17... g5 {[%clk 0:02:17.5]}
18. Nd5 {[%clk 0:02:19.4]} 18... Nxd5 {[%clk 0:02:17.2]} 19. exd5 {[%clk
0:02:20.3]} 19... f5 {[%clk 0:02:10.4]} 20. Qa3 {[%clk 0:02:18]} 20... c5 {[%clk
0:01:50.7]} 21. Nb5 {[%clk 0:02:10.6]} 21... Bxb5 {[%clk 0:01:47.7]} 22. Bxb5
{[%clk 0:02:11.5]} 22... f4 {[%clk 0:01:42.9]} 23. Rhe1 {[%clk 0:02:11.6]} 23...
Kc7 {[%clk 0:01:42.1]} 24. Re4 {[%clk 0:02:07.4]} 24... Ra8 {[%clk 0:01:39.1]}
25. Qb3 {[%clk 0:02:05]} 25... Qf6 {[%clk 0:01:36.6]} 26. a4 {[%clk 0:02:02.9]}
26... h5 {[%clk 0:01:26.6]} 27. Qc3 {[%clk 0:01:57.2]} 27... Rhd8 {[%clk
0:01:21.7]} 28. Rde1 {[%clk 0:01:49.4]} 28... g4 {[%clk 0:01:18.6]} 29. Qd2
{[%clk 0:01:46.8]} 29... Rf8 {[%clk 0:01:17.4]} 30. fxg4 {[%clk 0:01:37.6]}
30... hxg4 {[%clk 0:01:17]} 31. Rf1 {[%clk 0:01:38.2]} 31... f3 {[%clk
0:01:16.4]} 32. gxf3 {[%clk 0:01:38.2]} 32... gxf3 {[%clk 0:01:07.5]} 33. Qe3
{[%clk 0:01:38.7]} 33... Rf7 {[%clk 0:00:57.5]} 34. b4 {[%clk 0:01:18.7]} 34...
Raf8 {[%clk 0:00:56]} 35. a5 {[%clk 0:01:17.2]} 35... Rh7 {[%clk 0:00:21.4]} 36.
axb6+ {[%clk 0:01:15.9]} 36... Kxb6 {[%clk 0:00:22]} 37. bxc5+ {[%clk
0:01:14.6]} 37... dxc5 {[%clk 0:00:20.9]} 38. Rxe5 {[%clk 0:01:13.5]} 38... Qf4
{[%clk 0:00:16.4]} 39. Qxf4 {[%clk 0:00:58.5]} 39... Rxf4 {[%clk 0:00:17.3]} 40.
Be2 {[%clk 0:00:58.8]} 40... Rhf7 {[%clk 0:00:15.6]} 41. Bd1 {[%clk 0:00:57.9]}
41... f2 {[%clk 0:00:15.8]} 42. Re6+ {[%clk 0:00:54.2]} 42... Kb5 {[%clk
0:00:15.6]} 43. Be2+ {[%clk 0:00:53.7]} 43... Kb4 {[%clk 0:00:16]} 44. Kd2
{[%clk 0:00:52.4]} 44... c4 {[%clk 0:00:15.6]} 45. Rb1+ {[%clk 0:00:51]} 45...
Kc5 {[%clk 0:00:16]} 46. d6 {[%clk 0:00:49.4]} 46... b5 {[%clk 0:00:15.9]} 47.
Ke3 {[%clk 0:00:44]} 47... b4 {[%clk 0:00:15.3]} 48. d7 {[%clk 0:00:34.6]} 48...
Rd4 {[%clk 0:00:10.7]} 49. Re5+ {[%clk 0:00:33.1]} 49... Kd6 {[%clk 0:00:08.7]}
50. Kxd4 {[%clk 0:00:33.3]} 1-0

[Event "Early-Titled-Tuesday-Blitz-October-10-2023"]
[Site "Chess.com"]
[Date "2023.10.10"]
[Round "9"]
[White "YouShallNotPass001"]
[Black "jaskol95"]
[Result "0-1"]
[WhiteElo "2397"]
[BlackElo "2584"]
[TimeControl "180+1"]
[EndTime "9:43:59 PDT"]
[Termination "jaskol95 won by checkmate"]

1. Nf3 {[%clk 0:03:00.9]} 1... d5 {[%clk 0:02:59.7]} 2. e3 {[%clk 0:03:01.8]}
2... Bg4 {[%clk 0:02:58.2]} 3. Be2 {[%clk 0:03:01.7]} 3... Nf6 {[%clk
0:02:57.8]} 4. O-O {[%clk 0:03:01.9]} 4... e6 {[%clk 0:02:58.4]} 5. h3 {[%clk
0:03:01.2]} 5... Bxf3 {[%clk 0:02:58.5]} 6. Bxf3 {[%clk 0:03:02.1]} 6... c6
{[%clk 0:02:59.1]} 7. b3 {[%clk 0:03:00.5]} 7... Bd6 {[%clk 0:02:59.5]} 8. c4
{[%clk 0:03:00.9]} 8... Nbd7 {[%clk 0:02:59.8]} 9. Bb2 {[%clk 0:03:01.1]} 9...
a5 {[%clk 0:02:57]} 10. cxd5 {[%clk 0:02:58.2]} 10... exd5 {[%clk 0:02:54.3]}
11. a3 {[%clk 0:02:58.4]} 11... O-O {[%clk 0:02:50.6]} 12. d3 {[%clk 0:02:58.6]}
12... Qe7 {[%clk 0:02:48.6]} 13. Nd2 {[%clk 0:02:58.9]} 13... Be5 {[%clk
0:02:46.1]} 14. d4 {[%clk 0:02:51.4]} 14... Bd6 {[%clk 0:02:45.5]} 15. Qc2
{[%clk 0:02:48.6]} 15... Rfe8 {[%clk 0:02:45.1]} 16. Rfe1 {[%clk 0:02:48.6]}
16... Ne4 {[%clk 0:02:42.1]} 17. Nxe4 {[%clk 0:02:38.8]} 17... dxe4 {[%clk
0:02:42.2]} 18. Be2 {[%clk 0:02:39.2]} 18... Nf6 {[%clk 0:02:35.2]} 19. Qc1
{[%clk 0:02:35.4]} 19... Nd5 {[%clk 0:02:26.3]} 20. Bf1 {[%clk 0:02:35.1]} 20...
Qg5 {[%clk 0:02:11]} 21. Qd1 {[%clk 0:02:32.4]} 21... f5 {[%clk 0:02:03.5]} 22.
b4 {[%clk 0:02:26.7]} 22... axb4 {[%clk 0:01:55.1]} 23. axb4 {[%clk 0:02:27.6]}
23... Bxb4 {[%clk 0:01:55.3]} 24. Re2 {[%clk 0:02:20.9]} 24... f4 {[%clk
0:01:41.4]} 25. exf4 {[%clk 0:02:17]} 25... Nxf4 {[%clk 0:01:38.7]} 26. Re3
{[%clk 0:02:17.3]} 26... Nd5 {[%clk 0:01:30]} 27. Rg3 {[%clk 0:02:16.1]} 27...
Qf6 {[%clk 0:01:28.7]} 28. Rxa8 {[%clk 0:02:12]} 28... Rxa8 {[%clk 0:01:27.7]}
29. Qg4 {[%clk 0:02:12.3]} 29... Rf8 {[%clk 0:01:18.2]} 30. Kh2 {[%clk 0:01:47]}
30... Bd6 {[%clk 0:01:15.9]} 31. Bc4 {[%clk 0:01:44.4]} 31... Bxg3+ {[%clk
0:01:08.9]} 32. fxg3 {[%clk 0:01:45.3]} 32... Qf5 {[%clk 0:00:59.9]} 33. Qe2
{[%clk 0:01:42]} 33... b5 {[%clk 0:00:56.9]} 34. Bb3 {[%clk 0:01:39.7]} 34...
Qf2 {[%clk 0:00:38.2]} 35. Bxd5+ {[%clk 0:01:36.1]} 35... cxd5 {[%clk
0:00:38.3]} 36. Qxb5 {[%clk 0:01:36.1]} 36... Qf5 {[%clk 0:00:28.8]} 37. Ba3
{[%clk 0:01:33.4]} 37... Rc8 {[%clk 0:00:21.8]} 38. Bd6 {[%clk 0:01:28.4]} 38...
h6 {[%clk 0:00:21]} 39. Be5 {[%clk 0:01:28.2]} 39... Qf7 {[%clk 0:00:15.8]} 40.
Qb3 {[%clk 0:01:27.7]} 40... Kh7 {[%clk 0:00:14.8]} 41. Qa2 {[%clk 0:01:26.2]}
41... Rc1 {[%clk 0:00:13.8]} 42. Qd2 {[%clk 0:01:26]} 42... Qf1 {[%clk
0:00:13.3]} 43. g4 {[%clk 0:01:23]} 43... Qg1+ {[%clk 0:00:13.3]} 44. Kg3 {[%clk
0:01:23.2]} 44... Qe1+ {[%clk 0:00:13]} 45. Qxe1 {[%clk 0:01:23.4]} 45... Rxe1
{[%clk 0:00:13.9]} 46. Kf2 {[%clk 0:01:24]} 46... Rd1 {[%clk 0:00:13.9]} 47. Ke2
{[%clk 0:01:24.1]} 47... Rd3 {[%clk 0:00:14.2]} 48. h4 {[%clk 0:01:20.3]} 48...
g6 {[%clk 0:00:14.1]} 49. h5 {[%clk 0:01:13.5]} 49... Rb3 {[%clk 0:00:10.5]} 50.
g3 {[%clk 0:01:10.4]} 50... Rb6 {[%clk 0:00:07.2]} 51. Ke3 {[%clk 0:01:10.1]}
51... Kg8 {[%clk 0:00:07.3]} 52. Kf4 {[%clk 0:01:07.8]} 52... Kf7 {[%clk
0:00:07.5]} 53. g5 {[%clk 0:01:06.9]} 53... gxh5 {[%clk 0:00:06.5]} 54. gxh6
{[%clk 0:01:04.3]} 54... Rxh6 {[%clk 0:00:07.4]} 55. Kg5 {[%clk 0:01:04.3]}
55... Re6 {[%clk 0:00:07.7]} 56. Kf4 {[%clk 0:01:03.3]} 56... Kg6 {[%clk
0:00:06.3]} 57. Bh8 {[%clk 0:01:02.2]} 57... Kf7 {[%clk 0:00:06.1]} 58. Be5
{[%clk 0:01:01.8]} 58... Rxe5 {[%clk 0:00:04.7]} 59. dxe5 {[%clk 0:01:01.1]}
59... Ke6 {[%clk 0:00:05.2]} 60. Kg5 {[%clk 0:01:00.8]} 60... e3 {[%clk
0:00:05]} 61. Kxh5 {[%clk 0:01:01.5]} 61... e2 {[%clk 0:00:05.7]} 62. g4 {[%clk
0:01:02.3]} 62... e1=Q {[%clk 0:00:06.4]} 63. g5 {[%clk 0:01:03.2]} 63... Qxe5
{[%clk 0:00:06.9]} 64. Kh6 {[%clk 0:01:03.5]} 64... Kf5 {[%clk 0:00:07.1]} 65.
g6 {[%clk 0:01:04.4]} 65... Qh8# {[%clk 0:00:07.5]} 0-1